[Event "III Chess in a Rock 2022"]
[Site "Valencia"]
[Date "2022.05.15"]
[Round "3.2"]
[White "Petrov, Marian"]
[Black "Alonso Rosell, Alvar"]
[Result "0-1"]
[ECO "B12"]
[WhiteElo "2456"]
[BlackElo "2557"]
[Annotator "TA"]
[PlyCount "71"]
[EventDate "2022.05.15"]
[EventCountry "ESP"]
[SourceTitle "playchess.com"]
[Source "ChessBase"]
[SourceQuality "1"]
[TimeControl "480+4"]

{[%evp 9,71,0,0,0,0,-1,18,31,37,0,24,31,66,0,0,-49,-37,-54,-56,-89,-73,-96,-79,-82,-68,-76,-104,-233,-213,-191,-203,-302,-296,-633,-618,-593,-600,-657,-593,-623,-565,-901,-481,-538,-325,-499,-456,-546,-227,-635,-635,-620,-618,-529,-518,-483,-396,-1699,-1343,-29985,-29986,-29990,-29991,-29991]} 1. e4 {[%emt 0:00:03]} c6 {[%emt 0:00:01]} 2. d4 {[%emt 0:00:02]} d5 {[%emt 0:00:01]} 3. e5 {[%emt 0:00:02]} c5 {[%emt 0:00:01]} 4. dxc5 {[%emt 0:00:01]} e6 {[%emt 0:00:01]} 5. a3 {[%emt 0:00:03]} Bxc5 {[%emt 0:00:02]} 6. Qg4 {[%emt 0:00:02] B12: Caro-Kann: Advance Variation.} Ne7 {[%emt 0:00:11]} 7. Bd3 {[%emt 0:00:45]} Nbc6 $5 {[%emt 0:00:04][%mdl 4] An interesting side line.} 8. Nf3 {The position is equal.} Ng6 {[%emt 0:00:04]} 9. O-O {[%emt 0:00:08]} Qc7 {[%emt 0:02:50]} 10. Re1 $1 {[%emt 0:00:19] [#]} Bd7 $146 {[%emt 0:01:32]} ({Predecessor:} 10... O-O 11. Qh5 Bd7 12. b4 Bb6 13. Bb2 a5 14. b5 Nce7 15. a4 f6 16. exf6 gxf6 {0-1 (26) Visser,H (2243)-Gunina,V (2437) Skalica 2021}) 11. Nc3 {[%emt 0:00:15]} (11. b4 $14 Bb6 12. Bb2) 11... a6 $11 {[%emt 0:00:05]} 12. h4 {[%emt 0:00:43]} (12. Bxg6 $11 hxg6 13. Be3) 12... O-O-O $36 {[%emt 0:00:13][%cal Rg6e5][%mdl 2048] White is under pressure.} 13. Qg3 {[%emt 0:00:01]} Nd4 {[%emt 0:01:24]} 14. Ng5 {[%emt 0:00:36]} Rdf8 {[%emt 0:00:06]} 15. Bd2 {[%emt 0:02:43]} Ne7 {[%emt 0:00:42][%cal Bg6e7,Be7f5,Bf5d4][%mdl 32] And now ...f6 would win.} 16. b4 {[%emt 0:00:48]} Ba7 {[%emt 0:00:17] White must now prevent ...f6.} 17. Ne2 {[%emt 0:00:13]} Nef5 {[%emt 0:00:14]} (17... Nxc2 $2 18. Bxc2 Bb5 19. Nxh7 $18) 18. Qg4 {[%emt 0:00:30] White does not recover from this.} (18. Qh3 $17 {is a better defense.}) 18... f6 $1 $19 {[%emt 0:00:11][%cal Bf7f6,Bf6f5][%mdl 32]} ({Weaker is} 18... Qxe5 19. Ng3 h5 20. Qh3 $15) ({Much less strong is} 18... Nxc2 19. Bxc2 h6 20. Nh3 $1 $18) 19. Nxd4 {[%emt 0:00:18]} Nxd4 {[%emt 0:00:11]} 20. Nxh7 {[%emt 0:00:27]} (20. Nf3 $142 Nxf3+ 21. gxf3) 20... f5 $1 {[%emt 0:00:14]} 21. Qxg7 {[%emt 0:00:27]} (21. Qg6 Rfg8 22. c3) 21... Rfg8 {[%emt 0:00:03]} 22. Qxg8+ {[%emt 0:00:35]} Rxg8 {[%emt 0:00:02]} 23. Bg5 {[%emt 0:00:01]} Bb5 {[%emt 0:00:35]} 24. Nf6 {[%emt 0:00:02]} Rg6 {[%emt 0:00:01]} 25. Rac1 {[%emt 0:00:05]} Bb6 {[%emt 0:00:28][%cal Og6g5] Hoping for ...Rxg5!} 26. Kh2 {[%emt 0:00:23]} Nc6 {[%emt 0:00:08]} 27. f4 {[%emt 0:00:04]} (27. Nxd5 $142 exd5 28. Bxf5+ Kb8 29. Bxg6 Bxf2 30. Bf4) 27... Bf2 {[%emt 0:00:04]} 28. Re2 {[%emt 0:00:07] [#]} Bd4 {[%emt 0:00:03]} (28... Nxe5 $142 $1 {[%mdl 512]} 29. fxe5 {[#]} Bxh4 $1 {[%mdl 512]} 30. Bxh4 Bxd3) 29. g3 {[%emt 0:00:08] [#]} (29. c4 Bxc4 30. Bxc4 dxc4 31. Rxc4) 29... Nxe5 $1 {[%emt 0:00:04]} 30. fxe5 {[%emt 0:00:01] [#]} Rxg5 {[%emt 0:00:06][%mdl 512]} 31. Bxb5 {[%emt 0:00:07]} Rg6 {[%emt 0:00:04]} ({Worse is} 31... Rg7 32. Ne8 Qe7 33. Nxg7 Qxg7 34. Bd3 $17) 32. Bd7+ {[%emt 0:00:01]} Kd8 {[%emt 0:00:04]} 33. Bxe6 $2 {[%emt 0:00:02]} (33. Nxd5 exd5 34. Bxf5) 33... Bxe5 {[%emt 0:00:01]} 34. Nxd5 {[%emt 0:00:02]} Bxg3+ {[%emt 0:00:05]} 35. Kh1 {[%emt 0:00:02]} Qc4 {[%emt 0:00:02]} 36. Nf4 {[%emt 0:00:22] Weighted Error Value: White=1.01/Black=0.31} 0-1